[Event "Titled Tuesday Blitz February 15 Early 2022"]
[White "Ankerst, Mihael"]
[Black "Musovic, Armin"]
[WhiteFideId "14602369"]
[BlackFideId "939935"]
[WhiteElo "2281"]
[BlackElo "2250"]
[Result "0-1"]
[Round "05"]
[TimeControl "180+1"]
[Date "2022.02.15"]
[WhiteClock "0:00:18"]
[BlackClock "0:01:30"]

1. e4 {[%clk 0:02:55]}  c6 {[%clk 0:02:58]} 2. d4 {[%clk 0:02:55]}  d5 {[%clk 0:02:59]} 3. Nc3 {[%clk 0:02:55]}  dxe4 {[%clk 0:02:59]} 4. Nxe4 {[%clk 0:02:56]}  Nf6 {[%clk 0:03:00]} 5. Nxf6+ {[%clk 0:02:57]}  exf6 {[%clk 0:03:01]} 6. Ne2 {[%clk 0:02:57]}  Bd6 {[%clk 0:03:01]} 7. Ng3 {[%clk 0:02:57]}  O-O {[%clk 0:03:01]} 8. Be2 {[%clk 0:02:58]}  Re8 {[%clk 0:03:02]} 9. O-O {[%clk 0:02:58]}  Nd7 {[%clk 0:03:03]} 10. c4 {[%clk 0:02:59]}  Nf8 {[%clk 0:03:03]} 11. b3 {[%clk 0:02:59]}  Be6 {[%clk 0:03:02]} 12. Bb2 {[%clk 0:03:00]}  Rc8 {[%clk 0:03:01]} 13. Qc2 {[%clk 0:03:00]}  Bb8 {[%clk 0:03:02]} 14. Rad1 {[%clk 0:03:00]}  Qc7 {[%clk 0:03:02]} 15. Rfe1 {[%clk 0:03:00]}  Ng6 {[%clk 0:03:02]} 16. Qc3 {[%clk 0:02:59]}  Nf4 {[%clk 0:03:00]} 17. Bf3 {[%clk 0:02:58]}  h5 {[%clk 0:03:00]} 18. Re3 {[%clk 0:02:50]}  h4 {[%clk 0:02:56]} 19. Nf1 {[%clk 0:02:50]}  Bd7 {[%clk 0:02:33]} 20. Rde1 {[%clk 0:02:47]}  Rxe3 {[%clk 0:02:31]} 21. fxe3 {[%clk 0:02:47]}  Ne6 {[%clk 0:02:28]} 22. h3 {[%clk 0:02:29]}  Ng5 {[%clk 0:02:26]} 23. Bd1 {[%clk 0:02:28]}  Ne4 {[%clk 0:02:12]} 24. Qd3 {[%clk 0:02:10]}  Bf5 {[%clk 0:02:07]} 25. Qe2 {[%clk 0:02:08]}  Ng3 {[%clk 0:02:07]} 26. Qf3 {[%clk 0:02:06]}  Be4 {[%clk 0:02:05]} 27. Qg4 {[%clk 0:02:05]}  Nxf1 {[%clk 0:01:54]} 28. Kxf1 {[%clk 0:02:05]}  f5 {[%clk 0:01:41]} 29. Qxh4 {[%clk 0:02:05]}  Qh2 {[%clk 0:01:41]} 30. Qf2 {[%clk 0:00:22]}  Bg3 {[%clk 0:01:33]} 31. Qd2 {[%clk 0:00:19]}  Qh1+ {[%clk 0:01:29]} 32. Ke2 {[%clk 0:00:18]}  Qxg2# {[%clk 0:01:30]} 0-1


[Site "https://www.chess.com"]

[Event "Titled Tuesday Blitz February 15 Early 2022"]
[White "Ardila, Oscar Humberto"]
[Black "Sarkar, Justin"]
[WhiteFideId "4404742"]
[BlackFideId "2010011"]
[WhiteElo "1898"]
[BlackElo "2038"]
[Result "0-1"]
[Round "05"]
[TimeControl "180+1"]
[Date "2022.02.15"]
[WhiteClock "0:00:01"]
[BlackClock "0:00:08"]

1. d4 {[%clk 0:02:39]}  Nf6 {[%clk 0:02:57]} 2. c4 {[%clk 0:02:38]}  g6 {[%clk 0:02:57]} 3. Nc3 {[%clk 0:02:38]}  d5 {[%clk 0:02:56]} 4. cxd5 {[%clk 0:02:37]}  Nxd5 {[%clk 0:02:56]} 5. e4 {[%clk 0:02:38]}  Nxc3 {[%clk 0:02:56]} 6. bxc3 {[%clk 0:02:39]}  Bg7 {[%clk 0:02:56]} 7. Bc4 {[%clk 0:02:39]}  O-O {[%clk 0:02:52]} 8. Ne2 {[%clk 0:02:39]}  Nc6 {[%clk 0:02:51]} 9. O-O {[%clk 0:02:35]}  b6 {[%clk 0:02:48]} 10. Be3 {[%clk 0:02:33]}  Bb7 {[%clk 0:02:44]} 11. Qd2 {[%clk 0:02:31]}  e5 {[%clk 0:02:24]} 12. Rfd1 {[%clk 0:02:18]}  Na5 {[%clk 0:02:12]} 13. Bd3 {[%clk 0:02:16]}  exd4 {[%clk 0:01:57]} 14. cxd4 {[%clk 0:02:15]}  c5 {[%clk 0:01:56]} 15. d5 {[%clk 0:01:25]}  Bxa1 {[%clk 0:01:30]} 16. Rxa1 {[%clk 0:01:26]}  f5 {[%clk 0:01:29]} 17. Bh6 {[%clk 0:01:22]}  fxe4 {[%clk 0:01:23]} 18. Bxe4 {[%clk 0:01:11]}  Qf6 {[%clk 0:01:00]} 19. Rf1 {[%clk 0:01:08]}  Rfe8 {[%clk 0:00:57]} 20. Bf3 {[%clk 0:01:06]}  Nc4 {[%clk 0:00:54]} 21. Qc1 {[%clk 0:00:52]}  Ne5 {[%clk 0:00:43]} 22. Be4 {[%clk 0:00:27]}  Ng4 {[%clk 0:00:41]} 23. Ng3 {[%clk 0:00:26]}  Qh4 {[%clk 0:00:32]} 24. h3 {[%clk 0:00:14]}  Nxh6 {[%clk 0:00:32]} 25. Qc3 {[%clk 0:00:09]}  Rxe4 {[%clk 0:00:28]} 26. Nxe4 {[%clk 0:00:08]}  Qxe4 {[%clk 0:00:28]} 27. Re1 {[%clk 0:00:09]}  Qxd5 {[%clk 0:00:28]} 28. f3 {[%clk 0:00:09]}  Nf5 {[%clk 0:00:26]} 29. Kh1 {[%clk 0:00:09]}  Rd8 {[%clk 0:00:23]} 30. Qf6 {[%clk 0:00:08]}  Rf8 {[%clk 0:00:15]} 31. Qg5 {[%clk 0:00:08]}  Nd4 {[%clk 0:00:11]} 32. Qe7 {[%clk 0:00:06]}  Rf7 {[%clk 0:00:10]} 33. Qe8+ {[%clk 0:00:06]}  Kg7 {[%clk 0:00:10]} 34. a4 {[%clk 0:00:05]}  Nxf3 {[%clk 0:00:10]} 35. Re2 {[%clk 0:00:01]}  Qd1+ {[%clk 0:00:08]} 0-1


[Site "https://www.chess.com"]

[Event "Titled Tuesday Blitz February 15 Early 2022"]
[White "Balaji, Aaravamudhan"]
[Black "Demchenko, Anton"]
[WhiteFideId "436224"]
[BlackFideId "4160258"]
[WhiteElo "2602"]
[BlackElo "2884"]
[Result "1-0"]
[Round "05"]
[TimeControl "180+1"]
[Date "2022.02.15"]
[WhiteClock "0:00:03"]
[BlackClock "0:00:02"]

1. Nf3 {[%clk 0:03:00]}  Nf6 {[%clk 0:02:59]} 2. g3 {[%clk 0:03:01]}  b5 {[%clk 0:02:57]} 3. Bg2 {[%clk 0:03:02]}  Bb7 {[%clk 0:02:57]} 4. O-O {[%clk 0:03:03]}  e6 {[%clk 0:02:57]} 5. Nh4 {[%clk 0:03:04]}  Bxg2 {[%clk 0:02:55]} 6. Nxg2 {[%clk 0:03:04]}  Be7 {[%clk 0:02:54]} 7. d3 {[%clk 0:03:05]}  O-O {[%clk 0:02:53]} 8. e4 {[%clk 0:03:06]}  c5 {[%clk 0:02:51]} 9. Nd2 {[%clk 0:03:02]}  Nc6 {[%clk 0:02:50]} 10. f4 {[%clk 0:02:58]}  d6 {[%clk 0:02:45]} 11. Nf3 {[%clk 0:02:53]}  c4 {[%clk 0:02:38]} 12. Qe2 {[%clk 0:02:50]}  cxd3 {[%clk 0:02:38]} 13. cxd3 {[%clk 0:02:51]}  Rc8 {[%clk 0:02:33]} 14. Bd2 {[%clk 0:02:46]}  d5 {[%clk 0:02:28]} 15. e5 {[%clk 0:02:36]}  Nd7 {[%clk 0:02:25]} 16. d4 {[%clk 0:02:37]}  Qb6 {[%clk 0:02:21]} 17. Qd3 {[%clk 0:02:31]}  g6 {[%clk 0:01:42]} 18. Rfe1 {[%clk 0:01:48]}  a5 {[%clk 0:01:38]} 19. h4 {[%clk 0:01:40]}  Nb4 {[%clk 0:01:34]} 20. Bxb4 {[%clk 0:01:37]}  Bxb4 {[%clk 0:01:35]} 21. Re2 {[%clk 0:01:37]}  Qc6 {[%clk 0:01:35]} 22. g4 {[%clk 0:01:30]}  a4 {[%clk 0:00:57]} 23. a3 {[%clk 0:01:13]}  Be7 {[%clk 0:00:29]} 24. f5 {[%clk 0:01:12]}  Rfe8 {[%clk 0:00:30]} 25. Nf4 {[%clk 0:01:05]}  Bf8 {[%clk 0:00:23]} 26. Rf1 {[%clk 0:00:31]}  Qc4 {[%clk 0:00:23]} 27. Qb1 {[%clk 0:00:29]}  exf5 {[%clk 0:00:09]} 28. gxf5 {[%clk 0:00:29]}  Nf6 {[%clk 0:00:10]} 29. Rg2 {[%clk 0:00:17]}  Ne4 {[%clk 0:00:09]} 30. Rd1 {[%clk 0:00:15]}  Bh6 {[%clk 0:00:09]} 31. Ng5 {[%clk 0:00:15]}  Bxg5 {[%clk 0:00:09]} 32. hxg5 {[%clk 0:00:16]}  Qb3 {[%clk 0:00:08]} 33. Rd3 {[%clk 0:00:13]}  Rc3 {[%clk 0:00:07]} 34. Rxc3 {[%clk 0:00:12]}  Nxc3 {[%clk 0:00:08]} 35. Qd3 {[%clk 0:00:11]}  Qd1+ {[%clk 0:00:08]} 36. Qxd1 {[%clk 0:00:11]}  Nxd1 {[%clk 0:00:09]} 37. Nxd5 {[%clk 0:00:12]}  Rd8 {[%clk 0:00:07]} 38. Ne7+ {[%clk 0:00:10]}  Kf8 {[%clk 0:00:08]} 39. Nc6 {[%clk 0:00:10]}  Rd5 {[%clk 0:00:06]} 40. f6 {[%clk 0:00:06]}  Ne3 {[%clk 0:00:06]} 41. Re2 {[%clk 0:00:06]}  Nf5 {[%clk 0:00:05]} 42. Re4 {[%clk 0:00:03]}  Ke8 {[%clk 0:00:03]} 43. e6 {[%clk 0:00:03]}  fxe6 {[%clk 0:00:03]} 44. Nb4 {[%clk 0:00:03]}  Rxd4 {[%clk 0:00:03]} 45. Rxe6+ {[%clk 0:00:04]}  Kf7 {[%clk 0:00:03]} 46. Rb6 {[%clk 0:00:04]}  Rg4+ {[%clk 0:00:04]} 47. Kf2 {[%clk 0:00:04]}  Rxg5 {[%clk 0:00:05]} 48. Nd5 {[%clk 0:00:04]}  Nd4 {[%clk 0:00:04]} 49. Rb7+ {[%clk 0:00:04]}  Kf8 {[%clk 0:00:04]} 50. Rd7 {[%clk 0:00:02]}  Nc6 {[%clk 0:00:03]} 51. Rd6 {[%clk 0:00:02]}  Ne5 {[%clk 0:00:03]} 52. Nc7 {[%clk 0:00:02]}  Rf5+ {[%clk 0:00:02]} 53. Ke2 {[%clk 0:00:02]}  Nf7 {[%clk 0:00:02]} 54. Ra6 {[%clk 0:00:02]}  Re5+ {[%clk 0:00:02]} 55. Kd3 {[%clk 0:00:03]} 1-0


[Site "https://www.chess.com"]

[Event "Titled Tuesday Blitz February 15 Early 2022"]
[White "Balint, Vilmos"]
[Black "Lugovskoy, Maxim"]
[WhiteFideId "718050"]
[BlackFideId "24126454"]
[WhiteElo "2332"]
[BlackElo "2692"]
[Result "1-0"]
[Round "05"]
[TimeControl "180+1"]
[Date "2022.02.15"]
[WhiteClock "0:00:25"]
[BlackClock "0:00:05"]

1. d4 {[%clk 0:03:00]}  e6 {[%clk 0:02:59]} 2. Nf3 {[%clk 0:02:56]}  d5 {[%clk 0:02:59]} 3. g3 {[%clk 0:02:56]}  Nf6 {[%clk 0:02:58]} 4. Bg2 {[%clk 0:02:56]}  Be7 {[%clk 0:02:55]} 5. O-O {[%clk 0:02:57]}  O-O {[%clk 0:02:55]} 6. b3 {[%clk 0:02:51]}  b6 {[%clk 0:02:49]} 7. Bb2 {[%clk 0:02:51]}  Bb7 {[%clk 0:02:48]} 8. Nbd2 {[%clk 0:02:48]}  Nbd7 {[%clk 0:02:48]} 9. Re1 {[%clk 0:02:48]}  c5 {[%clk 0:02:36]} 10. c4 {[%clk 0:02:46]}  Rc8 {[%clk 0:02:34]} 11. Rc1 {[%clk 0:02:46]}  cxd4 {[%clk 0:02:31]} 12. Nxd4 {[%clk 0:02:45]}  Nc5 {[%clk 0:02:31]} 13. cxd5 {[%clk 0:02:37]}  Bxd5 {[%clk 0:02:30]} 14. e4 {[%clk 0:02:25]}  Bb7 {[%clk 0:02:28]} 15. Qe2 {[%clk 0:02:11]}  Ba6 {[%clk 0:02:20]} 16. Nc4 {[%clk 0:02:09]}  Qd7 {[%clk 0:02:08]} 17. Red1 {[%clk 0:01:54]}  Qc7 {[%clk 0:01:58]} 18. f3 {[%clk 0:01:40]}  Rfd8 {[%clk 0:01:57]} 19. Bf1 {[%clk 0:01:40]}  Qb7 {[%clk 0:01:47]} 20. Kg2 {[%clk 0:01:36]}  h6 {[%clk 0:01:40]} 21. Qe3 {[%clk 0:01:35]}  Rd7 {[%clk 0:01:34]} 22. Ne5 {[%clk 0:01:35]}  Rdd8 {[%clk 0:01:32]} 23. Bxa6 {[%clk 0:01:33]}  Qxa6 {[%clk 0:01:27]} 24. b4 {[%clk 0:01:30]}  Qxa2 {[%clk 0:01:19]} 25. Qa3 {[%clk 0:01:06]}  Qxa3 {[%clk 0:01:16]} 26. Bxa3 {[%clk 0:01:06]}  Na4 {[%clk 0:01:10]} 27. Ndc6 {[%clk 0:01:02]}  Rxd1 {[%clk 0:00:21]} 28. Nxe7+ {[%clk 0:01:02]}  Kf8 {[%clk 0:00:21]} 29. Nxc8 {[%clk 0:00:51]}  Rd2+ {[%clk 0:00:21]} 30. Kh3 {[%clk 0:00:50]}  Ra2 {[%clk 0:00:22]} 31. Rc7 {[%clk 0:00:39]}  Rxa3 {[%clk 0:00:20]} 32. Rxf7+ {[%clk 0:00:39]}  Kg8 {[%clk 0:00:20]} 33. Ne7+ {[%clk 0:00:39]}  Kh7 {[%clk 0:00:20]} 34. N5g6 {[%clk 0:00:31]}  Nd7 {[%clk 0:00:11]} 35. Nc6 {[%clk 0:00:26]}  Kxg6 {[%clk 0:00:07]} 36. Rxd7 {[%clk 0:00:25]}  Kh7 {[%clk 0:00:05]} 37. Rxa7 {[%clk 0:00:25]}  b5 {[%clk 0:00:04]} 38. Nd4 {[%clk 0:00:25]}  e5 {[%clk 0:00:04]} 39. Nxb5 {[%clk 0:00:25]}  Ra1 {[%clk 0:00:03]} 40. Nd6 {[%clk 0:00:25]}  Kg6 {[%clk 0:00:03]} 41. Nf5 {[%clk 0:00:25]}  Kf6 {[%clk 0:00:02]} 42. Nxg7 {[%clk 0:00:24]}  h5 {[%clk 0:00:01]} 43. Nxh5+ {[%clk 0:00:24]}  Ke6 {[%clk 0:00:01]} 44. Ng7+ {[%clk 0:00:24]}  Kd6 {[%clk 0:00:02]} 45. Nf5+ {[%clk 0:00:24]}  Kc6 {[%clk 0:00:03]} 46. g4 {[%clk 0:00:25]}  Kb6 {[%clk 0:00:04]} 47. Ra8 {[%clk 0:00:25]}  Kb5 {[%clk 0:00:04]} 48. Rb8+ {[%clk 0:00:23]}  Kc6 {[%clk 0:00:04]} 49. g5 {[%clk 0:00:24]}  Nb6 {[%clk 0:00:04]} 50. g6 {[%clk 0:00:24]}  Rg1 {[%clk 0:00:05]} 51. Ng3 {[%clk 0:00:24]}  Nd7 {[%clk 0:00:05]} 52. g7 {[%clk 0:00:24]}  Nxb8 {[%clk 0:00:05]} 53. g8=Q {[%clk 0:00:24]}  Nd7 {[%clk 0:00:06]} 54. Qd5+ {[%clk 0:00:24]}  Kc7 {[%clk 0:00:05]} 55. Nf5 {[%clk 0:00:25]}  Nf6 {[%clk 0:00:05]} 56. Qxe5+ {[%clk 0:00:25]}  Kd7 {[%clk 0:00:05]} 57. Qxf6 {[%clk 0:00:25]}  Kc8 {[%clk 0:00:05]} 58. Qe7 {[%clk 0:00:25]}  Kb8 {[%clk 0:00:05]} 59. Nd6 {[%clk 0:00:25]}  Rg7 {[%clk 0:00:04]} 60. Qxg7 {[%clk 0:00:25]}  Ka8 {[%clk 0:00:05]} 61. Qb7# {[%clk 0:00:25]} 1-0


[Site "https://www.chess.com"]

[Event "Titled Tuesday Blitz February 15 Early 2022"]
[White "Batsiashvili, Nino"]
[Black "Ovezdurdyyeva, Jemal"]
[WhiteFideId "13602993"]
[BlackFideId "14001888"]
[WhiteElo "2230"]
[BlackElo "1946"]
[Result "1-0"]
[Round "05"]
[TimeControl "180+1"]
[Date "2022.02.15"]
[WhiteClock "0:00:40"]
[BlackClock "0:00:01"]

1. d4 {[%clk 0:02:55]}  Nf6 {[%clk 0:02:59]} 2. c4 {[%clk 0:02:53]}  g6 {[%clk 0:02:59]} 3. Nc3 {[%clk 0:02:53]}  Bg7 {[%clk 0:02:58]} 4. e4 {[%clk 0:02:53]}  d6 {[%clk 0:02:59]} 5. Be2 {[%clk 0:02:54]}  O-O {[%clk 0:02:58]} 6. Nf3 {[%clk 0:02:54]}  e5 {[%clk 0:02:57]} 7. O-O {[%clk 0:02:55]}  Nc6 {[%clk 0:02:57]} 8. d5 {[%clk 0:02:56]}  Ne7 {[%clk 0:02:58]} 9. Ne1 {[%clk 0:02:56]}  Ne8 {[%clk 0:02:58]} 10. Nd3 {[%clk 0:02:57]}  f5 {[%clk 0:02:58]} 11. Bd2 {[%clk 0:02:57]}  f4 {[%clk 0:02:53]} 12. c5 {[%clk 0:02:57]}  g5 {[%clk 0:02:51]} 13. Rc1 {[%clk 0:02:45]}  Rf6 {[%clk 0:02:49]} 14. Bg4 {[%clk 0:02:41]}  Bxg4 {[%clk 0:02:36]} 15. Qxg4 {[%clk 0:02:40]}  Rg6 {[%clk 0:02:33]} 16. h3 {[%clk 0:02:23]}  Qc8 {[%clk 0:02:22]} 17. Qxc8 {[%clk 0:02:18]}  Rxc8 {[%clk 0:02:18]} 18. Nb5 {[%clk 0:02:16]}  a6 {[%clk 0:02:07]} 19. cxd6 {[%clk 0:02:15]}  axb5 {[%clk 0:02:06]} 20. dxe7 {[%clk 0:02:16]}  c6 {[%clk 0:02:03]} 21. Bb4 {[%clk 0:02:06]}  Kf7 {[%clk 0:01:57]} 22. Rfd1 {[%clk 0:01:46]}  Nd6 {[%clk 0:01:44]} 23. dxc6 {[%clk 0:01:41]}  bxc6 {[%clk 0:01:40]} 24. Nxf4 {[%clk 0:01:39]}  gxf4 {[%clk 0:01:31]} 25. Bxd6 {[%clk 0:01:31]}  Bf6 {[%clk 0:01:18]} 26. Rc5 {[%clk 0:01:29]}  Rcg8 {[%clk 0:01:01]} 27. Kf1 {[%clk 0:01:13]}  Rxg2 {[%clk 0:00:43]} 28. Ke2 {[%clk 0:01:09]}  Bh4 {[%clk 0:00:35]} 29. Rf1 {[%clk 0:01:04]}  Bf6 {[%clk 0:00:19]} 30. Bxe5 {[%clk 0:01:03]}  Kxe7 {[%clk 0:00:18]} 31. Bxf6+ {[%clk 0:01:03]}  Kxf6 {[%clk 0:00:18]} 32. Rf5+ {[%clk 0:01:03]}  Ke6 {[%clk 0:00:18]} 33. Rxf4 {[%clk 0:01:02]}  Ke5 {[%clk 0:00:18]} 34. Rh4 {[%clk 0:01:02]}  R8g7 {[%clk 0:00:17]} 35. Ke3 {[%clk 0:01:01]}  Rh2 {[%clk 0:00:17]} 36. Rh6 {[%clk 0:00:51]}  Rg6 {[%clk 0:00:13]} 37. f4+ {[%clk 0:00:48]}  Kf6 {[%clk 0:00:12]} 38. e5+ {[%clk 0:00:40]}  Kf5 {[%clk 0:00:10]} 39. Rh5+ {[%clk 0:00:40]}  Ke6 {[%clk 0:00:01]} 40. f5+ {[%clk 0:00:40]} 1-0


[Site "https://www.chess.com"]

[Event "Titled Tuesday Blitz February 15 Early 2022"]
[White "Bugayev, Vladimir"]
[Black "Atakhan, Abtin"]
[WhiteFideId "30901480"]
[BlackFideId "22502203"]
[WhiteElo "2400"]
[BlackElo "2119"]
[Result "0-1"]
[Round "05"]
[TimeControl "180+1"]
[Date "2022.02.15"]
[WhiteClock "0:01:15"]
[BlackClock "0:02:00"]

1. e4 {[%clk 0:03:00]}  c6 {[%clk 0:02:59]} 2. d4 {[%clk 0:03:00]}  d5 {[%clk 0:03:00]} 3. exd5 {[%clk 0:03:00]}  cxd5 {[%clk 0:03:00]} 4. Bd3 {[%clk 0:03:01]}  Nf6 {[%clk 0:03:00]} 5. c3 {[%clk 0:02:58]}  Bg4 {[%clk 0:03:00]} 6. Ne2 {[%clk 0:02:58]}  Nc6 {[%clk 0:03:00]} 7. O-O {[%clk 0:02:58]}  e6 {[%clk 0:03:00]} 8. Qb3 {[%clk 0:02:51]}  Qd7 {[%clk 0:02:49]} 9. Ng3 {[%clk 0:02:47]}  h5 {[%clk 0:02:41]} 10. f3 {[%clk 0:02:32]}  h4 {[%clk 0:02:39]} 11. Ne2 {[%clk 0:02:30]}  Bh5 {[%clk 0:02:39]} 12. Nf4 {[%clk 0:02:30]}  Bd6 {[%clk 0:02:37]} 13. Nxh5 {[%clk 0:02:29]}  Rxh5 {[%clk 0:02:38]} 14. Na3 {[%clk 0:02:09]}  a6 {[%clk 0:02:36]} 15. Nc2 {[%clk 0:02:08]}  Qc7 {[%clk 0:02:37]} 16. f4 {[%clk 0:02:05]}  Na5 {[%clk 0:02:28]} 17. Qa4+ {[%clk 0:02:02]}  b5 {[%clk 0:02:28]} 18. Bxb5+ {[%clk 0:02:03]}  axb5 {[%clk 0:02:29]} 19. Qxb5+ {[%clk 0:02:03]}  Kf8 {[%clk 0:02:22]} 20. h3 {[%clk 0:01:36]}  Nc4 {[%clk 0:02:16]} 21. Ne3 {[%clk 0:01:22]}  Kg8 {[%clk 0:02:07]} 22. Nxc4 {[%clk 0:01:20]}  dxc4 {[%clk 0:02:07]} 23. f5 {[%clk 0:01:15]}  Ra5 {[%clk 0:02:00]} 0-1


[Site "https://www.chess.com"]

[Event "Titled Tuesday Blitz February 15 Early 2022"]
[White "Corrales Jimenez, Fidel"]
[Black "Noroozi, Omid"]
[WhiteFideId "3506690"]
[BlackFideId "12501190"]
[WhiteElo "2807"]
[BlackElo "2589"]
[Result "1-0"]
[Round "05"]
[TimeControl "180+1"]
[Date "2022.02.15"]
[WhiteClock "0:00:42"]
[BlackClock "0:01:06"]

1. d4 {[%clk 0:02:53]}  Nf6 {[%clk 0:02:59]} 2. c4 {[%clk 0:02:53]}  e6 {[%clk 0:02:59]} 3. Nc3 {[%clk 0:02:50]}  Bb4 {[%clk 0:03:00]} 4. f3 {[%clk 0:02:47]}  c5 {[%clk 0:02:59]} 5. a3 {[%clk 0:02:47]}  Ba5 {[%clk 0:02:58]} 6. e4 {[%clk 0:02:42]}  cxd4 {[%clk 0:02:57]} 7. Qxd4 {[%clk 0:02:39]}  Nc6 {[%clk 0:02:58]} 8. Qd2 {[%clk 0:02:38]}  O-O {[%clk 0:02:53]} 9. b4 {[%clk 0:02:36]}  Bc7 {[%clk 0:02:53]} 10. Bb2 {[%clk 0:02:27]}  Re8 {[%clk 0:02:48]} 11. Nge2 {[%clk 0:02:26]}  d5 {[%clk 0:02:44]} 12. cxd5 {[%clk 0:02:23]}  exd5 {[%clk 0:02:45]} 13. Nxd5 {[%clk 0:02:22]}  Nxd5 {[%clk 0:02:44]} 14. Qxd5 {[%clk 0:02:23]}  Qxd5 {[%clk 0:02:44]} 15. exd5 {[%clk 0:02:24]}  Ne7 {[%clk 0:02:43]} 16. O-O-O {[%clk 0:02:23]}  Nf5 {[%clk 0:02:44]} 17. Ng3 {[%clk 0:02:09]}  Bf4+ {[%clk 0:02:31]} 18. Kb1 {[%clk 0:02:07]}  Ne3 {[%clk 0:02:32]} 19. Re1 {[%clk 0:01:21]}  Bd7 {[%clk 0:02:26]} 20. Nh5 {[%clk 0:01:08]}  Bh6 {[%clk 0:02:26]} 21. g4 {[%clk 0:01:02]}  Nxd5 {[%clk 0:02:18]} 22. Bc4 {[%clk 0:00:59]}  Nb6 {[%clk 0:02:17]} 23. Ba2 {[%clk 0:00:55]}  Bc6 {[%clk 0:02:01]} 24. g5 {[%clk 0:00:54]}  Bxf3 {[%clk 0:01:57]} 25. gxh6 {[%clk 0:00:55]}  Bxh5 {[%clk 0:01:57]} 26. Bxg7 {[%clk 0:00:51]}  Bg6+ {[%clk 0:01:57]} 27. Ka1 {[%clk 0:00:50]}  Nd7 {[%clk 0:01:32]} 28. h4 {[%clk 0:00:50]}  Nf8 {[%clk 0:01:28]} 29. Rxe8 {[%clk 0:00:49]}  Rxe8 {[%clk 0:01:29]} 30. h5 {[%clk 0:00:49]}  Be4 {[%clk 0:01:05]} 31. Rg1 {[%clk 0:00:48]}  Ne6 {[%clk 0:01:05]} 32. Be5+ {[%clk 0:00:44]}  Kf8 {[%clk 0:01:05]} 33. Bd6+ {[%clk 0:00:43]}  Re7 {[%clk 0:01:06]} 34. Bxe6 {[%clk 0:00:42]} 1-0


[Site "https://www.chess.com"]

[Event "Titled Tuesday Blitz February 15 Early 2022"]
[White "Coto Mederos, Michel"]
[Black "Kobalia, Mikhail"]
[WhiteFideId "3508528"]
[BlackFideId "4119150"]
[WhiteElo "2566"]
[BlackElo "2796"]
[Result "0-1"]
[Round "05"]
[TimeControl "180+1"]
[Date "2022.02.15"]
[WhiteClock "0:00:03"]
[BlackClock "0:00:09"]

1. c4 {[%clk 0:02:53]}  Nf6 {[%clk 0:02:58]} 2. Nc3 {[%clk 0:02:49]}  g6 {[%clk 0:02:58]} 3. g3 {[%clk 0:02:46]}  Bg7 {[%clk 0:02:57]} 4. Bg2 {[%clk 0:02:47]}  O-O {[%clk 0:02:58]} 5. e3 {[%clk 0:02:47]}  d6 {[%clk 0:02:57]} 6. Nge2 {[%clk 0:02:46]}  e5 {[%clk 0:02:57]} 7. O-O {[%clk 0:02:37]}  Nc6 {[%clk 0:02:56]} 8. d3 {[%clk 0:02:35]}  Bg4 {[%clk 0:02:53]} 9. h3 {[%clk 0:02:25]}  Be6 {[%clk 0:02:52]} 10. Nd5 {[%clk 0:02:22]}  Qd7 {[%clk 0:02:51]} 11. Kh2 {[%clk 0:02:23]}  Nd8 {[%clk 0:02:42]} 12. Nec3 {[%clk 0:02:00]}  Ne8 {[%clk 0:02:34]} 13. e4 {[%clk 0:01:22]}  c6 {[%clk 0:02:33]} 14. Ne3 {[%clk 0:01:20]}  f5 {[%clk 0:02:33]} 15. exf5 {[%clk 0:01:18]}  gxf5 {[%clk 0:02:30]} 16. f4 {[%clk 0:01:18]}  Nf6 {[%clk 0:02:29]} 17. Ne2 {[%clk 0:01:14]}  c5 {[%clk 0:02:06]} 18. Bd2 {[%clk 0:01:06]}  Nc6 {[%clk 0:02:05]} 19. Rb1 {[%clk 0:01:05]}  a5 {[%clk 0:01:58]} 20. Qa4 {[%clk 0:00:47]}  e4 {[%clk 0:01:32]} 21. dxe4 {[%clk 0:00:26]}  Nxe4 {[%clk 0:01:31]} 22. Be1 {[%clk 0:00:25]}  Rae8 {[%clk 0:01:21]} 23. Qc2 {[%clk 0:00:19]}  Nd4 {[%clk 0:01:18]} 24. Nxd4 {[%clk 0:00:19]}  cxd4 {[%clk 0:01:17]} 25. Nd5 {[%clk 0:00:19]}  Qc6 {[%clk 0:00:54]} 26. Qb3 {[%clk 0:00:14]}  b5 {[%clk 0:00:44]} 27. Qd1 {[%clk 0:00:05]}  bxc4 {[%clk 0:00:42]} 28. Nc3 {[%clk 0:00:01]}  dxc3 {[%clk 0:00:41]} 29. Bxc3 {[%clk 0:00:02]}  Bxc3 {[%clk 0:00:38]} 30. bxc3 {[%clk 0:00:03]}  Qc5 {[%clk 0:00:37]} 31. Qc2 {[%clk 0:00:03]}  Bd5 {[%clk 0:00:28]} 32. Rbd1 {[%clk 0:00:03]}  Bc6 {[%clk 0:00:26]} 33. Rf3 {[%clk 0:00:03]}  Re7 {[%clk 0:00:20]} 34. g4 {[%clk 0:00:03]}  fxg4 {[%clk 0:00:16]} 35. hxg4 {[%clk 0:00:04]}  Nf6 {[%clk 0:00:16]} 36. Rg3 {[%clk 0:00:04]}  Bxg2 {[%clk 0:00:15]} 37. Qxg2 {[%clk 0:00:05]}  Re3 {[%clk 0:00:14]} 38. g5 {[%clk 0:00:04]}  Ne4 {[%clk 0:00:13]} 39. Rxe3 {[%clk 0:00:03]}  Qxe3 {[%clk 0:00:13]} 40. Rd4 {[%clk 0:00:03]}  Qxf4+ {[%clk 0:00:11]} 41. Kg1 {[%clk 0:00:03]}  Qe3+ {[%clk 0:00:10]} 42. Kh2 {[%clk 0:00:02]}  Rf2 {[%clk 0:00:09]} 43. Rxe4 {[%clk 0:00:02]}  Rxg2+ {[%clk 0:00:09]} 44. Kxg2 {[%clk 0:00:03]}  Qxe4+ {[%clk 0:00:09]} 0-1


[Site "https://www.chess.com"]